bitfinex/quotes_SOLUSD_20220226
["timestamp","ask_amount","ask_price","bid_price","bid_amount"]
[1645876456332,0.25,90.781,90.711,24.4065]
[1645876456536,0.25,90.781,90.72,16.5369]
[1645876456742,3.70910317,90.78,90.72,16.5369]
[1645876456933,27.28565656,90.78,90.711,24.4065]
[1645876457136,1.93705028,90.779,90.69,15.92]
[1645876457333,1.98232007,90.778,90.686,34.51761679]
[1645876457533,16.5431,90.77,90.685,24.2339]
[1645876457735,6.30124936,90.769,90.685,24.2339]
[1645876457936,4.408,90.769,90.685,24.2339]
[1645876458133,26.33688616,90.769,90.685,24.2339]
[1645876458334,1.58034799,90.767,90.685,24.2339]
[1645876458535,1.70677903,90.766,90.685,24.2339]
[1645876458735,6.28750531,90.765,90.685,24.2339]
[1645876458935,32.7999787,90.765,90.685,24.2339]
[1645876459134,110.1,90.763,90.68,16.5428]
[1645876459337,1.50702486,90.758,90.66,15.92]
[1645876459534,1.50702486,90.758,90.65,15.92]
[1645876459736,1.50702486,90.758,90.651,4.409]
[1645876459935,1.68136327,90.756,90.651,4.409]
[1645876460236,8.11707453,90.755,90.652,25.52018805]
[1645876460436,16.5475,90.75,90.66,16.5468]
[1645876460639,46.17341936,90.748,90.66,32.4668]
[1645876460937,2.00731757,90.746,90.66,16.5468]
[1645876461138,4.409,90.745,90.66,16.5468]
[1645876461340,7.16933277,90.745,90.66,16.5468]
[1645876461538,3.70807453,90.744,90.66,16.5468]
[1645876461739,6.08194228,90.743,90.66,16.5468]
[1645876462341,3.70807453,90.742,90.66,16.5468]
[1645876462545,1.47983781,90.739,90.66,16.5468]
[1645876463767,2.76033277,90.738,90.66,16.5468]
[1645876464146,1.71137887,90.737,90.66,16.5468]
[1645876464546,2.76033277,90.736,90.66,16.5468]
[1645876466555,1.71137887,90.737,90.66,16.5468]
[1645876466850,1.95608179,90.746,90.66,16.5468]
[1645876467050,1.95608179,90.746,90.68,16.5442]
[1645876467252,1.95608179,90.746,90.681,10.83368502]
[1645876467850,0.25,90.745,90.681,10.83368502]
[1645876472479,0.25,90.745,90.661,23.62]
[1645876472678,2.76033277,90.744,90.66,15.92]
[1645876472878,2.76033277,90.744,90.573,5.0]
[1645876472879,66.23,90.728,90.625,71.80541635]
[1645876473079,2.76033277,90.66,90.545,5.73021042]
[1645876473279,66.23,90.659,90.519,16.9146]
[1645876473478,66.23,90.649,90.52,44.24604691]
[1645876473680,55.2381,90.64,90.52,76.73584691]
[1645876473879,3.62118683,90.638,90.52,76.73584691]
[1645876474081,4.416,90.637,90.52,76.73584691]
[1645876474279,22.47058154,90.637,90.52,60.16604691]
[1645876474480,32.23837988,90.636,90.52,60.16604691]
[1645876474681,6.09145441,90.635,90.52,60.16604691]
[1645876474987,78.5209738,90.635,90.52,60.16604691]
[1645876475189,1.6326789,90.633,90.52,60.16604691]
[1645876475383,15.92,90.63,90.52,60.16604691]
[1645876475583,16.5715,90.62,90.52,60.16604691]
[1645876475787,66.23,90.617,90.52,60.16604691]
[1645876475987,72.63770779,90.616,90.52,44.24604691]
[1645876476182,1.52863548,90.615,90.52,44.24604691]
[1645876476385,40.94771944,90.615,90.52,44.24604691]
[1645876476582,4.25041095,90.614,90.52,44.24604691]
[1645876476883,4.58430507,90.613,90.52,44.24604691]
[1645876477082,1.66517074,90.612,90.52,44.24604691]
[1645876477382,1.79573669,90.611,90.52,44.24604691]
[1645876477686,16.5705,90.61,90.52,44.24604691]
[1645876477881,2.00672486,90.609,90.52,44.24604691]
[1645876478282,1.67207943,90.608,90.52,44.24604691]
[1645876479482,16.5725,90.6,90.52,44.24604691]
[1645876479784,1.63546666,90.599,90.52,44.24604691]
[1645876480192,1.61029628,90.619,90.52,60.81664691]
[1645876480385,1.63068409,90.629,90.52,76.73664691]
[1645876480884,1.63068409,90.629,90.521,110.1]
[1645876481886,1.63068409,90.629,90.541,110.1]
[1645876482084,16.5647,90.66,90.541,117.18]
[1645876482085,4.415,90.654,90.541,117.18]
[1645876482286,1.61582734,90.658,90.541,117.18]
[1645876482893,1.61582734,90.658,90.543,110.1]
[1645876483084,16.5642,90.65,90.571,53.80857935]
[1645876483285,1.84003834,90.649,90.571,53.80857935]
[1645876483886,1.59003834,90.649,90.571,53.80857935]
[1645876484086,1.93451993,90.639,90.571,53.80857935]
[1645876485288,0.25,90.638,90.571,53.80857935]
[1645876486694,2.38937696,90.629,90.571,53.80857935]
[1645876486899,4.415,90.628,90.571,53.80857935]
[1645876487088,27.60811512,90.628,90.571,53.80857935]
[1645876487288,1.55816135,90.627,90.571,53.80857935]
[1645876487486,4.415,90.626,90.571,53.80857935]
[1645876487889,16.5698,90.62,90.53,16.569]
[1645876488086,115.98473261,90.619,90.51,15.92]
[1645876488286,32.02411512,90.619,90.49,55.2406]
[1645876488486,1.64243983,90.618,90.5,15.92]
[1645876488786,6.25321968,90.617,90.5,15.92]
[1645876488986,13.68248599,90.615,90.501,47.34726361]
[1645876489190,4.417,90.614,90.502,110.1]
[1645876489387,5.92823738,90.614,90.502,110.1]
[1645876489586,2.06118553,90.599,90.51,16.5722]
[1645876489786,3.97856827,90.599,90.51,16.5722]
[1645876489986,2.76010257,90.598,90.501,47.34726361]
[1645876490189,2.76010257,90.609,90.501,47.34726361]
[1645876490387,2.76010257,90.609,90.502,2.1746768]
[1645876490596,1.66357176,90.635,90.51,16.5736]
[1645876490786,1.66357176,90.635,90.521,110.1]
[1645876490985,1.66357176,90.635,90.521,118.46]
[1645876491192,1.6972293,90.633,90.523,110.1]
[1645876491386,1.6972293,90.633,90.531,110.1]
[1645876491586,0.25,90.632,90.55,16.5657]
[1645876492486,0.25,90.632,90.551,46.10587517]
[1645876493487,0.25,90.632,90.56,16.5641]
[1645876497689,4.415,90.657,90.581,110.1]
[1645876497888,1.78955525,90.674,90.582,4.414]
[1645876498288,1.78955525,90.674,90.571,4.413]
[1645876498693,15.37814436,90.673,90.572,43.38062329]
[1645876498892,15.62814436,90.673,90.573,4.413]
[1645876499090,1.7692346,90.672,90.573,4.413]
[1645876499492,16.5606,90.67,90.59,16.5582]
[1645876499689,16.5606,90.67,90.591,44.89021924]
[1645876499690,1.85493489,90.669,90.591,44.89021924]
[1645876501096,16.5613,90.66,90.591,44.89021924]
[1645876501297,0.36552716,90.659,90.591,44.89021924]
[1645876501505,11.22568552,90.659,90.591,44.89021924]
[1645876501700,4.28074033,90.658,90.591,44.89021924]
[1645876501902,2.76010257,90.658,90.591,44.89021924]
[1645876502096,2.76010257,90.657,90.591,44.89021924]
[1645876502299,176.33,90.656,90.591,44.89021924]
[1645876502496,16.5646,90.65,90.591,44.89021924]
[1645876502796,1.51894666,90.649,90.57,16.5621]
[1645876502996,2.76010257,90.649,90.57,16.5621]
[1645876503196,2.76010257,90.648,90.55,16.9042]
[1645876503396,2.76010257,90.648,90.543,4.414]
[1645876503597,66.23,90.646,90.544,52.0012733]
[1645876503799,110.1,90.637,90.544,52.0012733]
[1645876503997,1.47816498,90.636,90.544,52.0012733]
[1645876505499,16.5684,90.63,90.55,16.5662]
[1645876505699,1.46866634,90.629,90.55,16.5662]
[1645876506305,6.4505668,90.667,90.551,114.515]
[1645876506502,1.6080234,90.659,90.571,110.1]
[1645876506702,2.00762061,90.668,90.571,110.1]
[1645876506903,2.00762061,90.668,90.572,4.414]
[1645876507102,2.00762061,90.668,90.573,110.1]
[1645876507703,2.00762061,90.668,90.574,4.414]
[1645876508104,2.00762061,90.668,90.573,114.513]
[1645876508505,2.00762061,90.668,90.591,44.9120372]
[1645876509804,0.25,90.667,90.591,44.9120372]
[1645876510609,16.5614,90.66,90.591,44.9120372]
[1645876510807,1.54861772,90.659,90.591,44.9120372]
[1645876513917,2.78268137,90.649,90.591,44.9120372]
[1645876514121,2.78268137,90.649,90.573,23.8386]
[1645876514321,0.78939916,90.649,90.573,23.8386]
[1645876515122,0.78939916,90.649,90.574,56.34497212]
[1645876515523,16.5649,90.64,90.574,56.34497212]
[1645876515723,1.64191707,90.639,90.55,16.5673]
[1645876515923,4.40216936,90.639,90.541,49.6972]
[1645876516125,2.76025229,90.638,90.541,49.6972]
[1645876516429,1.98670807,90.636,90.541,49.6972]
[1645876516627,13.61570002,90.635,90.542,46.96821838]
[1645876516829,1.66736537,90.634,90.542,46.96821838]
[1645876517024,3.8959271,90.619,90.542,46.96821838]
[1645876517225,11.0259271,90.619,90.542,46.96821838]
[1645876518024,16.5706,90.61,90.542,46.96821838]
[1645876518227,1.74643106,90.609,90.542,46.96821838]
[1645876519228,0.25,90.608,90.542,46.96821838]
[1645876519825,12.26083569,90.599,90.542,46.96821838]
[1645876520040,1.80915417,90.598,90.542,46.96821838]
[1645876521652,0.25,90.608,90.542,46.96821838]
[1645876522052,0.25,90.608,90.543,110.1]
[1645876522250,0.25,90.608,90.542,46.96821838]
[1645876522647,0.25,90.608,90.543,110.1]
[1645876523044,1.88625523,90.632,90.543,110.1]
[1645876523245,1.85520251,90.632,90.551,110.1]
[1645876523445,1.53093829,90.662,90.551,110.1]
[1645876523648,1.88809181,90.669,90.553,110.1]
[1645876524250,2.00346518,90.667,90.553,110.1]
[1645876524549,2.00346518,90.667,90.573,110.1]
[1645876524747,2.00346518,90.667,90.573,117.39]
[1645876525748,0.25,90.666,90.573,117.39]
[1645876525947,0.25,90.666,90.573,110.1]
[1645876526347,0.25,90.666,90.572,47.50650998]
[1645876526549,0.25,90.666,90.591,56.41811338]
[1645876528154,1.65785796,90.659,90.591,56.41811338]
[1645876528551,4.413,90.664,90.591,56.41811338]
[1645876528750,2.75291127,90.665,90.591,56.41811338]
[1645876528952,2.75291127,90.664,90.591,56.41811338]
[1645876529655,0.25,90.666,90.591,56.41811338]
[1645876529852,1.62571993,90.663,90.591,56.41811338]
[1645876531457,1.62571993,90.663,90.6,16.5587]
[1645876532257,1.53093829,90.696,90.601,110.1]
[1645876532454,1.86471305,90.7,90.601,110.1]
[1645876532653,9.39571544,90.695,90.601,110.1]
[1645876533052,12.14707198,90.694,90.601,110.1]
[1645876533252,1.79823686,90.693,90.601,110.1]
[1645876533452,1.79823686,90.693,90.62,16.5548]
[1645876533655,1.79823686,90.693,90.621,59.48028968]
[1645876533853,0.25,90.692,90.621,59.48028968]
[1645876534252,9.41023489,90.691,90.621,59.48028968]
[1645876534457,11.35673358,90.691,90.621,59.48028968]
[1645876535064,25.96603489,90.69,90.621,59.48028968]
[1645876535260,1.84548315,90.689,90.621,59.48028968]
[1645876535455,11.25571804,90.689,90.61,16.5553]
[1645876535858,9.41023489,90.688,90.61,16.5553]
[1645876536862,1.96128127,90.679,90.592,48.5279]
[1645876537058,15.92,90.67,90.565,77.2843]
[1645876537260,6.41297706,90.669,90.561,49.1284]
[1645876537562,5.49997091,90.667,90.571,57.51978657]
[1645876537758,4.414,90.666,90.571,57.51978657]
[1645876537959,123.92423489,90.666,90.571,57.51978657]
[1645876538160,25.2809673,90.665,90.571,57.51978657]
[1645876538360,6.09512028,90.664,90.571,57.51978657]
[1645876538562,16.5641,90.66,90.571,57.51978657]
[1645876538760,1.73822749,90.659,90.571,57.51978657]
[1645876539161,9.41023489,90.658,90.571,57.51978657]
[1645876539763,11.07125926,90.658,90.571,57.51978657]
[1645876539962,1.66964339,90.657,90.571,57.51978657]
[1645876540363,9.41023489,90.656,90.571,57.51978657]
[1645876540562,16.565,90.64,90.561,49.1284]
[1645876540764,1.60391786,90.639,90.561,49.1284]
[1645876541162,10.56502869,90.64,90.561,49.1284]
[1645876541362,176.33,90.636,90.52,55.2279]
[1645876541562,176.33,90.619,90.528,45.98426312]
[1645876541766,5.36428544,90.618,90.528,45.98426312]
[1645876542164,6.22790687,90.617,90.528,45.98426312]
[1645876542367,29.47595875,90.617,90.528,45.98426312]
[1645876542568,16.5749,90.6,90.53,16.5715]
[1645876542765,13.86410882,90.599,90.53,16.5715]
[1645876542965,1.901882,90.598,90.53,16.5715]
[1645876543164,1.50724673,90.616,90.531,110.1]
[1645876543364,1.68934213,90.629,90.531,142.5712]
[1645876543565,1.59946053,90.665,90.531,196.16947086]
[1645876543767,4.415,90.664,90.533,110.1]
[1645876543966,16.5628,90.66,90.56,16.5641]
[1645876544165,13.81901782,90.664,90.561,104.96969656]
[1645876544166,12.62975874,90.658,90.561,104.96969656]
[1645876544369,6.24512567,90.657,90.561,104.96969656]
[1645876544765,9.65401782,90.656,90.561,104.96969656]
[1645876544968,16.5634,90.65,90.57,16.5637]
[1645876545369,1.94627046,90.649,90.57,16.5637]
[1645876545566,12.15904651,90.649,90.561,104.96969656]
[1645876545770,176.33,90.646,90.561,104.96969656]
[1645876545967,3.11391278,90.644,90.561,104.96969656]
[1645876546169,4.414,90.643,90.561,104.96969656]
[1645876546378,16.57304651,90.643,90.561,104.96969656]
[1645876546573,2.02030494,90.642,90.561,104.96969656]
[1645876546767,9.40401782,90.641,90.561,104.96969656]
[1645876546972,4.414,90.64,90.561,104.96969656]
[1645876547169,5.90006999,90.64,90.561,104.96969656]
[1645876547567,16.5652,90.64,90.561,104.96969656]
[1645876547771,1.50945485,90.639,90.561,104.96969656]
[1645876547970,2.75502869,90.642,90.561,104.96969656]
[1645876548469,13.81668462,90.641,90.561,104.96969656]
[1645876548671,1.55287327,90.64,90.561,104.96969656]
[1645876549271,4.414,90.643,90.562,2.86292427]
[1645876549470,1.59607011,90.66,90.563,4.414]
[1645876549871,1.59607011,90.66,90.564,2.86292427]
[1645876550071,9.40629596,90.659,90.564,2.86292427]
[1645876550272,1.95760269,90.658,90.561,104.96969656]
[1645876550476,16.5632,90.65,90.57,16.5642]
[1645876550674,1.64433439,90.649,90.57,16.5642]
[1645876550873,11.05063035,90.649,90.57,16.5642]
[1645876551072,1.55604092,90.648,90.57,16.5642]
[1645876551371,9.40629596,90.648,90.57,16.5642]
[1645876551772,1.50325068,90.653,90.57,16.5642]
[1645876551972,4.414,90.652,90.57,16.5642]
[1645876552172,13.82029596,90.652,90.57,16.5642]
[1645876552373,2.03566214,90.651,90.57,16.5642]
[1645876552578,16.5654,90.64,90.57,16.5642]
[1645876552773,5.63887845,90.639,90.57,16.5642]
[1645876556176,3.93968648,90.639,90.57,16.5642]
[1645876560877,3.93968648,90.639,90.561,104.96969656]
[1645876561078,3.93968648,90.639,90.473,5.0]
[1645876561079,2.75502869,90.638,90.51,13.27]
[1645876561306,1.99027421,90.636,90.516,53.1664]
[1645876561504,4.415,90.635,90.522,2.86292427]
[1645876561704,176.33,90.634,90.522,2.86292427]
[1645876561907,176.33,90.632,90.522,2.86292427]
[1645876562103,176.33,90.63,90.535,58.91895601]
[1645876562302,176.33,90.628,90.535,58.91895601]
[1645876562504,16.571,90.61,90.54,16.5697]
[1645876562702,13.33139478,90.609,90.535,58.91895601]
[1645876562909,1.72155808,90.608,90.535,58.91895601]
[1645876567310,1.72155808,90.608,90.54,16.5695]
[1645876567709,1.72155808,90.608,90.541,2.86292427]
[1645876568512,0.25,90.607,90.536,4.416]
[1645876568910,0.25,90.607,90.535,58.91895601]
[1645876569110,0.25,90.607,90.536,4.416]
[1645876569511,0.25,90.607,90.551,59.98542457]
[1645876572014,0.25,90.607,90.56,16.5659]
[1645876576018,5.94593829,90.653,90.56,16.5659]
[1645876576019,4.415,90.653,90.561,112.96292427]
[1645876576218,1.92073799,90.669,90.58,16.557]
[1645876576425,1.53093829,90.682,90.581,110.1]
[1645876576621,1.53093829,90.682,90.581,157.9089]
[1645876576824,9.59224928,90.681,90.583,110.1]
[1645876577019,1.70511751,90.679,90.583,110.1]
[1645876577218,1.70511751,90.679,90.584,2.86292427]
[1645876577622,9.59224928,90.678,90.611,54.82288774]
[1645876577821,0.25,90.677,90.611,54.82288774]
[1645876579521,0.25,90.677,90.62,16.555]
[1645876583227,0.25,90.677,90.612,48.5406]
[1645876583427,2.75502869,90.676,90.612,48.5406]
[1645876583626,2.75502869,90.676,90.57,13.27]
[1645876583627,13.98395167,90.675,90.503,5.0]
[1645876583835,1.72328865,90.674,90.55,13.27]
[1645876584024,50.34781734,90.674,90.551,50.23652427]
[1645876584225,1.54820488,90.672,90.551,50.23652427]
[1645876584427,4.414,90.671,90.56,55.2045]
[1645876584630,1.77418648,90.669,90.56,55.2045]
[1645876584828,16.5631,90.66,90.56,55.2045]
[1645876585028,25.58613067,90.659,90.56,55.2045]
[1645876585228,1.91744754,90.658,90.56,55.2045]
[1645876586428,1.91744754,90.658,90.57,16.5643]
[1645876586629,1.91744754,90.658,90.571,24.1574]
[1645876588030,1.91744754,90.658,90.58,16.5622]
[1645876593633,9.58595609,90.657,90.58,16.5622]
[1645876594334,16.5644,90.65,90.571,24.1574]
[1645876594535,1.62898491,90.649,90.571,24.1574]
[1645876594734,4.3840136,90.649,90.571,24.1574]
[1645876594935,11.09284993,90.648,90.571,24.1574]
[1645876595142,1.77683316,90.647,90.571,24.1574]
[1645876595335,2.75502869,90.647,90.571,24.1574]
[1645876595534,2.75502869,90.646,90.571,24.1574]
[1645876595735,12.34193068,90.646,90.571,24.1574]
[1645876595934,1.54360587,90.645,90.571,24.1574]
[1645876596541,1.84524751,90.658,90.571,24.1574]
[1645876597040,9.58992266,90.657,90.58,16.5625]
[1645876597840,1.84524751,90.658,90.58,16.5625]
[1645876598742,0.25,90.657,90.58,16.5625]
[1645876602657,1.84524751,90.658,90.58,16.5625]
[1645876602857,1.79900124,90.684,90.581,135.0516184]
[1645876603058,1.79900124,90.684,90.601,110.1]
[1645876603359,3.0865874,90.721,90.601,110.1]
[1645876603360,1.98688281,90.701,90.603,110.1]
[1645876603558,9.59349143,90.683,90.602,26.66642427]
[1645876603760,9.59349143,90.683,90.604,2.86292427]
[1645876603959,6.10878653,90.699,90.604,2.86292427]
[1645876604258,0.25,90.698,90.604,2.86292427]
[1645876604462,1.73415674,90.697,90.604,2.86292427]
[1645876604862,9.59349143,90.696,90.604,2.86292427]
[1645876605160,9.59349143,90.696,90.62,16.5534]
[1645876605363,9.59349143,90.696,90.62,22.4034]
[1645876605860,11.51926229,90.695,90.621,43.62830933]
[1645876606061,1.7893083,90.694,90.621,43.62830933]
[1645876606264,11.51926229,90.695,90.63,16.5527]
[1645876607262,0.25,90.694,90.63,16.5527]
[1645876607466,2.24679441,90.694,90.63,16.5527]
[1645876607865,0.25,90.694,90.63,16.5527]
[1645876608061,11.51926229,90.695,90.63,16.5527]
[1645876609264,0.25,90.694,90.63,16.5527]
[1645876611869,2.14831442,90.694,90.63,16.5527]
[1645876612470,2.14831442,90.694,90.623,24.416]
[1645876612771,2.14831442,90.694,90.621,43.62830933]
[1645876612772,2.75502869,90.693,90.621,43.62830933]
[1645876612970,12.46231992,90.693,90.621,43.62830933]
[1645876613172,1.52144351,90.692,90.621,43.62830933]
[1645876613374,11.22873474,90.692,90.621,43.62830933]
[1645876613872,9.70729123,90.691,90.621,43.62830933]
[1645876614477,16.5578,90.69,90.621,43.62830933]
[1645876614675,1.73192328,90.689,90.621,43.62830933]
[1645876615476,2.20264822,90.694,90.621,43.62830933]
[1645876615877,9.70550446,90.693,90.621,43.62830933]
[1645876616276,2.20264822,90.694,90.621,43.62830933]
[1645876616477,0.25,90.694,90.621,43.62830933]
[1645876616876,0.25,90.694,90.622,23.0323]
[1645876617076,0.25,90.694,90.63,16.553]
[1645876618076,0.25,90.694,90.631,110.1]
[1645876618277,0.25,90.694,90.64,16.5484]
[1645876619076,0.25,90.694,90.641,59.64852359]
[1645876620176,0.25,90.694,90.65,16.5496]
[1645876623282,32.4574,90.75,90.651,110.1]
[1645876623481,25.59730547,90.746,90.67,16.5456]
[1645876623683,9.70287615,90.73,90.67,16.5456]
[1645876624084,9.70287615,90.744,90.67,16.5456]
[1645876624282,1.58945941,90.728,90.671,50.36808676]
[1645876624681,1.58945941,90.728,90.67,16.5456]
[1645876624882,9.70287615,90.727,90.67,16.5456]
[1645876625085,9.70287615,90.727,90.654,24.3992]
[1645876625683,9.70287615,90.727,90.655,45.2015469]
[1645876625881,0.25,90.726,90.655,45.2015469]
[1645876626283,9.70287615,90.725,90.655,45.2015469]
[1645876632990,9.70287615,90.725,90.66,16.5477]
[1645876640098,9.70287615,90.736,90.661,114.51]
[1645876640296,9.70287615,90.736,90.68,16.5442]
[1645876640501,12.74098991,90.735,90.68,16.5442]
[1645876641096,0.25,90.734,90.68,16.5442]
[1645876642299,1.90496567,90.745,90.68,16.5442]
[1645876642503,1.94514826,90.748,90.68,16.5442]
[1645876642706,1.53093829,90.775,90.681,137.7446]
[1645876642899,1.58632855,90.768,90.7,16.537]
[1645876643102,1.53093829,90.781,90.7,24.537]
[1645876643301,13.83624451,90.774,90.701,60.14552193]
[1645876643499,1.53093829,90.786,90.702,110.1]
[1645876643699,1.53093829,90.793,90.711,110.1]
[1645876643905,1.53093829,90.795,90.713,110.1]
[1645876644107,1.47592492,90.796,90.713,110.1]
[1645876644306,1.47592492,90.796,90.714,4.407]
[1645876644509,9.67555916,90.794,90.721,110.1]
[1645876644707,9.67555916,90.794,90.721,122.257]
[1645876644907,9.67555916,90.795,90.721,122.257]
[1645876645308,0.25,90.794,90.721,122.257]
[1645876645512,9.67555916,90.795,90.721,122.257]
[1645876645713,9.67555916,90.793,90.74,16.5324]
[1645876645910,9.67555916,90.793,90.741,59.27002888]
[1645876646109,9.67555916,90.802,90.741,59.27002888]
[1645876647216,0.25,90.801,90.741,59.27002888]
[1645876647611,9.67555916,90.8,90.75,16.5315]
[1645876647810,9.67555916,90.8,90.741,59.27002888]
[1645876648011,0.25,90.801,90.741,59.27002888]
[1645876649313,30.0,92.042,90.741,59.27002888]
[1645876649314,4.406,90.822,90.75,16.5313]
[1645876649514,1.72210096,90.828,90.75,16.50817375]
[1645876649715,9.66270875,90.821,90.75,16.50817375]
[1645876650115,13.78201541,90.82,90.75,16.50817375]
[1645876650316,9.66270875,90.827,90.75,16.50817375]
[1645876650518,24.5944,90.867,90.77,16.5234]
[1645876650519,1.53093829,90.841,90.77,16.5234]
[1645876650720,1.53093829,90.853,90.77,23.5134]
[1645876650918,9.66886726,90.84,90.771,110.1]
[1645876651350,14.14231286,90.844,90.772,59.31093262]
[1645876651543,1.81982192,90.843,90.79,16.5215]
[1645876651745,11.48868918,90.843,90.773,24.1002]
[1645876652146,9.91886726,90.842,90.773,24.1002]
[1645876652643,9.66886726,90.841,90.773,24.1002]
[1645876653247,16.5297,90.84,90.75,16.5297]
[1645876653441,1.56591042,90.839,90.751,24.7756]
[1645876653641,4.405,90.838,90.752,57.86463035]
[1645876653841,22.42386726,90.838,90.751,24.7756]
[1645876654040,1.91604665,90.837,90.751,24.7756]
[1645876654240,11.58491391,90.837,90.751,24.7756]
[1645876654639,9.66886726,90.836,90.751,24.7756]
[1645876655040,9.66886726,90.835,90.751,24.7756]
[1645876655442,16.5335,90.82,90.751,24.7756]
[1645876655643,1.68547706,90.819,90.751,24.7756]
[1645876655850,11.35434432,90.819,90.751,24.7756]
[1645876656248,9.66886726,90.818,90.751,24.7756]
[1645876656645,8.77547706,90.819,90.751,24.7756]
[1645876656945,8.77547706,90.819,90.747,48.93255455]
[1645876657145,11.6404599,90.818,90.747,48.93255455]
[1645876657444,1.60135866,90.816,90.747,48.93255455]
[1645876657744,3.44015124,90.816,90.747,48.93255455]
[1645876658244,9.64459068,90.815,90.747,48.93255455]
[1645876658645,11.53640651,90.815,90.747,48.93255455]
[1645876659051,1.89181583,90.815,90.747,48.93255455]
[1645876660248,1.60135866,90.816,90.75,16.5311]
[1645876661451,1.66797125,90.828,90.75,16.5311]
[1645876661854,1.66797125,90.828,90.747,48.93255455]
[1645876661855,1.5942467,90.839,90.76,16.5288]
[1645876662049,1.7665743,90.848,90.76,16.5288]
[1645876662249,1.7665743,90.848,90.76,19.39172427]
[1645876662450,1.54581229,90.846,90.76,19.39172427]
[1645876662653,1.54581229,90.846,90.761,23.5213]
[1645876662848,9.65045012,90.845,90.761,23.5213]
[1645876663652,0.25,90.844,90.761,23.5213]
[1645876664048,9.65045012,90.843,90.761,23.5213]
[1645876665050,2.0300896,90.841,90.761,23.5213]
[1645876665450,16.53,90.84,90.761,23.5213]
[1645876665651,1.82228473,90.839,90.761,23.5213]
[1645876666053,9.65045012,90.838,90.761,23.5213]
[1645876670261,1.82228473,90.839,90.761,23.5213]
[1645876671862,1.82228473,90.839,90.77,16.5276]
[1645876674263,1.82228473,90.839,90.761,23.5213]
[1645876675363,1.82228473,90.839,90.73,79.0149]
[1645876675364,16.5317,90.83,90.73,23.9149]
[1645876675564,113.0,90.818,90.731,24.6307]
[1645876675763,6.06504582,90.817,90.731,24.6307]
[1645876675963,17.66313302,90.817,90.731,24.6307]
[1645876676363,1.89147658,90.815,90.731,24.6307]
[1645876676564,4.406,90.814,90.731,24.6307]
[1645876676861,16.5385,90.8,90.731,24.6307]
[1645876677063,6.19629685,90.799,90.731,24.6307]
[1645876678183,1.79029685,90.799,90.731,24.6307]
[1645876681887,1.96855362,90.814,90.731,24.6307]
[1645876682085,1.53093829,90.813,90.731,24.6307]
[1645876682285,177.86093829,90.809,90.69,15.91]
[1645876682485,176.33,90.806,90.693,24.8031]
[1645876682685,111.63093829,90.804,90.693,24.8031]
[1645876682885,110.1,90.802,90.693,24.8031]
[1645876683086,6.2645508,90.803,90.693,24.8031]
[1645876683087,110.1,90.8,90.693,24.8031]
[1645876683287,4.407,90.799,90.723,49.47983546]
[1645876683486,16.539,90.79,90.723,49.47983546]
[1645876683694,1.63777504,90.789,90.723,49.47983546]
[1645876684188,1.63494427,90.797,90.7,16.5403]
[1645876684488,2.75509585,90.788,90.7,16.5403]
[1645876684887,1.77151453,90.787,90.7,16.5403]
[1645876685090,12.187062,90.786,90.701,50.88176132]
[1645876685286,6.15029647,90.785,90.701,50.88176132]
[1645876685486,16.5409,90.78,90.701,50.88176132]
[1645876685688,1.78044249,90.779,90.701,50.88176132]
[1645876688490,1.78044249,90.779,90.71,16.5387]
[1645876688697,1.9124215,90.784,90.711,23.7991]
[1645876690493,1.9124215,90.784,90.72,16.5367]
[1645876691995,1.9124215,90.784,90.711,23.7991]
[1645876696409,16.5407,90.78,90.711,23.7991]
[1645876696603,1.78244888,90.779,90.711,23.7991]
[1645876697007,4.407,90.778,90.711,23.7991]
[1645876697402,16.5428,90.77,90.701,50.88176132]
[1645876697603,1.87902773,90.769,90.683,22.8137]
[1645876697803,1.96502859,90.768,90.683,22.8137]
[1645876698002,4.408,90.767,90.683,22.8137]
[1645876698203,6.30300588,90.767,90.683,22.8137]
[1645876698402,12.44506658,90.766,90.683,22.8137]
[1645876698603,4.408,90.765,90.683,22.8137]
[1645876698808,14.09797073,90.765,90.683,22.8137]
[1645876699004,1.60338433,90.764,90.683,22.8137]